fUST/lending_fUST_20250930
["ID","MTS","AMOUNT","RATE_DAILY","PERIOD"]
[388425693,1759164658000,-151.0,0.00024121,7]
[388425694,1759164658010,-800.0,0.00024124,2]
[388425695,1759164658020,-2175.0,0.00024129,2]
[388425696,1759164658028,-600.0,0.00024133,20]
[388425697,1759164658048,-800.0,0.00024144,2]
[388425698,1759164658058,-479.94765416,0.00024156,2]
[388425699,1759164658069,-460.0,0.00024168,2]
[388425700,1759164658079,-800.0,0.00024206,2]
[388425701,1759164658089,-552.25971254,0.00024209,3]
[388425702,1759164658098,-151.0,0.00024209,7]
[388425703,1759164658107,-151.0,0.00024209,7]
[388425704,1759164658118,-151.0,0.00024209,7]
[388425705,1759164658127,-447.937231,0.00024209,7]
[388425706,1759164658140,-447.937231,0.00024209,7]
[388425707,1759164658150,-447.937231,0.00024209,7]
[388425708,1759164658159,-447.937231,0.00024209,7]
[388425709,1759164658168,-151.0,0.00024209,7]
[388425710,1759164658179,-151.0,0.00024209,7]
[388425711,1759164658188,-151.0,0.00024209,7]
[388425712,1759164658198,-151.0,0.00024209,7]
[388425713,1759164658208,-151.0,0.00024209,7]
[388425714,1759164658219,-461.701477,0.00024209,7]
[388425715,1759164658228,-461.701477,0.00024209,7]
[388425716,1759164658237,-461.701477,0.00024209,7]
[388425717,1759164658247,-461.701477,0.00024209,7]
[388425718,1759164658256,-151.0,0.00024209,7]
[388425719,1759164658265,-151.0,0.00024209,7]
[388425720,1759164658275,-151.0,0.00024209,7]
[388425721,1759164658285,-155.1244069,0.0002421,2]
[388425722,1759164658294,-575.25,0.00024214,2]
[388425723,1759164658303,-537.22,0.00024214,2]
[388425724,1759164658312,-480.0,0.00024214,2]
[388425725,1759164658322,-480.0,0.00024214,2]
[388425726,1759164658331,-480.0,0.00024214,2]
[388425727,1759164658340,-574.14,0.00024214,2]
[388425728,1759164658349,-480.0,0.00024214,2]
[388425729,1759164658359,-480.0,0.00024214,2]
[388425730,1759164658368,-480.0,0.00024214,2]
[388425731,1759164658377,-480.0,0.00024214,2]
[388425732,1759164658386,-496.18,0.00024214,2]
[388425733,1759164658395,-480.0,0.00024214,2]
[388425734,1759164658404,-480.0,0.00024214,2]
[388425735,1759164658413,-531.62,0.00024214,2]
[388425736,1759164658422,-480.0,0.00024214,2]
[388425737,1759164658432,-598.54,0.00024214,2]
[388425738,1759164658441,-487.7,0.00024214,2]
[388425739,1759164658450,-480.0,0.00024214,2]
[388425740,1759164658460,-480.0,0.00024214,2]
[388425741,1759164658469,-480.0,0.00024214,2]
[388425742,1759164658478,-151.0,0.00024214,7]
[388425743,1759164658488,-151.0,0.00024214,7]
[388425744,1759164658497,-151.0,0.00024214,7]
[388425745,1759164658507,-151.0,0.00024214,7]
[388425746,1759164658516,-151.0,0.00024214,7]
[388425747,1759164658526,-151.0,0.00024214,7]
[388425748,1759164658535,-151.0,0.00024214,7]
[388425749,1759164658544,-151.0,0.00024214,7]
[388425750,1759164658553,-151.0,0.00024214,7]
[388425751,1759164658563,-151.0,0.00024214,7]
[388425752,1759164658572,-151.0,0.00024214,7]
[388425753,1759164658581,-151.0,0.00024214,7]
[388425754,1759164658590,-151.0,0.00024214,7]
[388425755,1759164658599,-151.0,0.00024214,7]
[388425756,1759164658608,-151.0,0.00024214,7]
[388425757,1759164658617,-151.0,0.00024214,7]
[388425758,1759164658626,-151.0,0.00024214,7]
[388425759,1759164658635,-151.0,0.00024214,7]
[388425760,1759164658645,-2511.59476622,0.00024255,2]
[388425761,1759164658659,-480.0,0.00024259,2]
[388425762,1759164658668,-480.0,0.00024259,2]
[388425763,1759164658678,-480.0,0.00024259,2]
[388425764,1759164658687,-495.09,0.00024259,2]
[388425765,1759164658696,-480.0,0.00024259,2]
[388425766,1759164658705,-528.78,0.00024259,2]
[388425767,1759164658715,-783.25,0.00024259,2]
[388425768,1759164658724,-725.8,0.00024259,2]
[388425769,1759164658733,-1135.11,0.00024259,2]
[388425770,1759164658743,-2341.56,0.00024259,2]
[388425771,1759164658753,-480.0,0.00024259,2]
[388425772,1759164658762,-4465.95,0.00024259,2]
[388425773,1759164658771,-480.0,0.00024259,2]
[388425774,1759164658781,-386.06703618,0.00024259,2]
[388425775,1759164658790,-521.71,0.00024259,2]
[388425776,1759164658800,-480.0,0.00024259,2]
[388425777,1759164658810,-4814.42,0.00024259,2]
[388425778,1759164658819,-1844.69,0.00024259,2]
[388425779,1759164658829,-1147.45,0.00024259,2]
[388425780,1759164658838,-480.0,0.00024259,2]
[388425781,1759164658847,-515.08,0.00024259,2]
[388425782,1759164658857,-480.0,0.00024259,2]
[388425783,1759164658866,-620.0,0.00024259,2]
[388425784,1759164658876,-480.0,0.00024259,2]
[388425785,1759164658886,-480.0,0.0002426,2]
[388425786,1759164658895,-480.0,0.0002426,2]
[388425787,1759164658905,-842.13,0.0002426,2]
[388425788,1759164658914,-480.0,0.0002426,2]
[388425789,1759164658924,-480.0,0.0002426,2]
[388425790,1759164658933,-480.0,0.0002426,2]
[388425791,1759164658943,-611.44,0.0002426,2]
[388425792,1759164658952,-480.0,0.0002426,2]
[388425793,1759164658962,-480.0,0.0002426,2]
[388425794,1759164658973,-480.0,0.0002426,2]
[388425795,1759164658982,-480.0,0.0002426,2]
[388425796,1759164658992,-480.0,0.0002426,2]
[388425797,1759164659001,-666.11,0.0002426,2]
[388425798,1759164659011,-480.0,0.0002426,2]
[388425799,1759164659020,-480.0,0.0002426,2]
[388425800,1759164659030,-480.0,0.0002426,2]
[388425801,1759164659040,-604.42,0.0002426,2]
[388425802,1759164659050,-480.0,0.0002426,2]
[388425803,1759164659060,-500.17,0.0002426,2]
[388425804,1759164659071,-480.0,0.0002426,2]
[388425805,1759164659081,-480.0,0.0002426,2]
[388425806,1759164659090,-480.0,0.0002426,2]
[388425807,1759164659099,-661.3,0.0002426,2]
[388425808,1759164659108,-502.68,0.0002426,2]
[388425809,1759164659117,-480.0,0.0002426,2]
[388425810,1759164659127,-560.09,0.0002426,2]
[388425811,1759164659138,-510.55,0.0002426,2]
[388425812,1759164659149,-621.98,0.0002426,2]
[388425813,1759164659158,-480.0,0.0002426,2]
[388425814,1759164659168,-480.0,0.0002426,2]
[388425815,1759164659177,-480.0,0.0002426,2]
[388425816,1759164659188,-480.0,0.0002426,2]
[388425817,1759164659198,-480.0,0.0002426,2]
[388425818,1759164659207,-789.41,0.0002426,2]
[388425819,1759164659217,-480.0,0.0002426,2]
[388425820,1759164659227,-480.0,0.0002426,2]
[388425821,1759164659236,-480.0,0.0002426,2]
[388425822,1759164659245,-480.0,0.0002426,2]
[388425823,1759164659255,-480.0,0.0002426,2]
[388425824,1759164659264,-480.0,0.0002426,2]
[388425825,1759164659273,-480.0,0.0002426,2]
[388425826,1759164659285,-589.63,0.0002426,2]
[388425827,1759164659294,-324.12052386,0.0002426,2]
[388425828,1759164659303,-480.0,0.0002426,2]
[388425829,1759164659312,-480.0,0.0002426,2]
[388425830,1759164659322,-37898.81420301,0.00024261,2]
[388425831,1759164659332,-338.07728549,0.00024273,2]
[388425832,1759164659341,-500.0,0.00024273,2]
[388425833,1759164659350,-500.0,0.00024273,2]
[388425834,1759164659359,-500.0,0.00024273,2]
[388425835,1759164659368,-500.0,0.00024273,2]
[388425836,1759164659377,-500.0,0.00024273,2]
[388425837,1759164659386,-500.0,0.00024273,2]
[388425838,1759164659395,-516.0459655,0.00024273,2]
[388425839,1759164659404,-500.0,0.00024273,2]
[388425840,1759164659413,-431.25894735,0.00024273,2]
[388425841,1759164659422,-500.0,0.00024273,2]
[388425842,1759164659431,-500.0,0.00024273,2]
[388425843,1759164659440,-500.0,0.00024273,2]
[388425844,1759164659449,-163.72715987,0.00024273,2]
[388425845,1759164659458,-500.0,0.00024273,2]
[388425846,1759164659467,-500.0,0.00024273,2]
[388425847,1759164659476,-509.3829313,0.00024273,2]
[388425848,1759164659486,-500.0,0.00024273,2]
[388425849,1759164659495,-500.0,0.00024273,2]
[388425850,1759164659503,-504.06488842,0.00024273,2]
[388425851,1759164659512,-535.9630655,0.00024273,2]
[388425852,1759164659521,-500.0,0.00024273,2]
[388425853,1759164659530,-500.0,0.00024273,2]
[388425854,1759164659538,-500.0,0.00024273,2]
[388425855,1759164659547,-500.0,0.00024273,2]
[388425856,1759164659556,-175.00939999,0.00024273,2]
[388425857,1759164659565,-500.0,0.00024273,2]
[388425858,1759164659574,-500.0,0.00024273,2]
[388425859,1759164659583,-500.0,0.00024273,2]
[388425860,1759164659591,-500.0,0.00024273,2]
[388425861,1759164659600,-509.86893301,0.00024273,2]
[388425862,1759164659609,-500.0,0.00024273,2]
[388425863,1759164659618,-500.0,0.00024273,2]
[388425864,1759164659626,-500.0,0.00024273,2]
[388425865,1759164659635,-500.0,0.00024273,2]
[388425866,1759164659644,-500.0,0.00024273,2]
[388425867,1759164659653,-500.0,0.00024273,2]
[388425868,1759164659662,-500.0,0.00024273,2]
[388425869,1759164659671,-500.0,0.00024273,2]
[388425870,1759164659680,-800.0,0.00024283,2]
[388425871,1759164659689,-800.0,0.00024284,2]
[388425872,1759164659698,-526.72222862,0.00024285,2]
[388425873,1759164659707,-214.41420306,0.00024285,2]
[388425874,1759164659716,-480.0,0.00024285,2]
[388425875,1759164659725,-596.36,0.00024285,2]
[388425876,1759164659734,-480.0,0.00024285,2]
[388425877,1759164659743,-480.0,0.00024285,2]
[388425878,1759164659752,-3496.08,0.00024285,2]
[388425879,1759164659762,-1095.37,0.00024285,2]
[388425880,1759164659770,-480.0,0.00024285,2]
[388425881,1759164659779,-480.0,0.00024285,2]
[388425882,1759164659788,-1349.09,0.00024285,2]
[388425883,1759164659797,-1039.26,0.00024285,2]
[388425884,1759164659807,-2599.0,0.00024285,2]
[388425885,1759164659816,-1440.98,0.00024285,2]
[388425886,1759164659826,-480.0,0.00024285,2]
[388425887,1759164659835,-642.81,0.00024285,2]
[388425888,1759164659844,-480.0,0.00024285,2]
[388425889,1759164659854,-480.0,0.00024285,2]
[388425890,1759164659863,-2341.91,0.00024285,2]
[388425891,1759164659872,-480.0,0.00024285,2]
[388425892,1759164659882,-776.23,0.00024285,2]
[388425893,1759164659891,-580.76,0.00024285,2]
[388425894,1759164659901,-1642.23,0.00024285,2]
[388425895,1759164659910,-2557.3,0.00024285,2]
[388425896,1759164659919,-480.0,0.00024285,2]
[388425897,1759164659929,-691.68,0.00024285,2]
[388425898,1759164659938,-535.59,0.00024285,2]
[388425899,1759164659947,-480.0,0.00024285,2]
[388425900,1759164659957,-480.0,0.00024285,2]
[388425901,1759164659966,-1887.42,0.00024285,2]
[388425902,1759164659975,-1663.18,0.00024285,2]
[388425903,1759164659984,-746.54,0.00024285,2]
[388425904,1759164659993,-2557.3,0.00024285,2]
[388425905,1759164660002,-640.16,0.00024285,2]
[388425906,1759164660011,-480.0,0.00024285,2]
[388425907,1759164660020,-633.38,0.00024285,2]
[388425908,1759164660030,-480.0,0.00024285,2]
[388425909,1759164660040,-11073.97,0.00024285,2]
[388425910,1759164660049,-2718.02,0.00024285,2]
[388425911,1759164660058,-551.13,0.00024286,2]
[388425912,1759164660067,-480.0,0.00024286,2]
[388425913,1759164660077,-480.0,0.00024286,2]
[388425914,1759164660087,-480.0,0.00024286,2]
[388425915,1759164660096,-480.0,0.00024286,2]
[388425916,1759164660106,-480.0,0.00024286,2]
[388425917,1759164660115,-556.14,0.00024286,2]
[388425918,1759164660124,-480.0,0.00024286,2]
[388425919,1759164660133,-665.8,0.00024286,2]
[388425920,1759164660146,-480.0,0.00024286,2]
[388425921,1759164660156,-653.96,0.00024286,2]
[388425922,1759164660165,-621.11,0.00024286,2]
[388425923,1759164660174,-491.28,0.00024286,2]
[388425924,1759164660193,-1385.7,0.00024286,2]
[388425925,1759164660204,-480.0,0.00024286,2]
[388425926,1759164660219,-630.97,0.00024286,2]
[388425927,1759164660231,-480.0,0.00024286,2]
[388425928,1759164660242,-480.0,0.00024286,2]
[388425929,1759164660251,-563.98,0.00024286,2]
[388425930,1759164660261,-734.07,0.00024286,2]
[388425931,1759164660509,-1173.05,0.00024286,2]
[388425932,1759164660519,-800.57,0.00024286,2]
[388425933,1759164660529,-1196.04,0.00024286,2]
[388425934,1759164660538,-583.93,0.00024286,2]
[388425935,1759164660547,-151.0,0.00024286,7]
[388425936,1759164660556,-578.16,0.00024286,2]
[388425937,1759164660564,-151.0,0.00024286,7]
[388425938,1759164660573,-151.0,0.00024286,7]
[388425939,1759164660581,-480.0,0.00024286,2]
[388425940,1759164660590,-151.0,0.00024286,7]
[388425941,1759164660599,-151.0,0.00024286,7]
[388425942,1759164660607,-151.0,0.00024286,7]
[388425943,1759164660616,-1611.12,0.00024286,2]
[388425944,1759164660625,-151.0,0.00024286,7]
[388425945,1759164660633,-151.0,0.00024286,7]
[388425946,1759164660642,-224.470643,0.00024286,7]
[388425947,1759164660651,-1140.79,0.00024286,2]
[388425948,1759164660660,-505.34,0.00024286,2]
[388425949,1759164660670,-151.0,0.00024286,7]
[388425950,1759164660679,-151.0,0.00024286,7]
[388425951,1759164660688,-676.78,0.00024286,2]
[388425952,1759164660697,-879.25,0.00024286,2]
[388425953,1759164660706,-644.7,0.00024286,2]
[388425954,1759164660715,-480.0,0.00024286,2]
[388425955,1759164660724,-656.61,0.00024286,2]
[388425956,1759164660734,-1480.83,0.00024286,2]
[388425957,1759164660745,-853.74,0.00024286,2]
[388425958,1759164660753,-480.0,0.00024286,2]
[388425959,1759164660763,-682.54,0.00024286,2]
[388425960,1759164660772,-480.0,0.00024286,2]
[388425961,1759164660781,-480.0,0.00024286,2]
[388425962,1759164660790,-675.01,0.00024286,2]
[388425963,1759164660799,-480.0,0.00024286,2]
[388425964,1759164660807,-1144.88,0.00024286,2]
[388425965,1759164660816,-480.0,0.00024286,2]
[388425966,1759164660825,-744.51,0.00024286,2]
[388425967,1759164660834,-1117.77,0.00024286,2]
[388425968,1759164660843,-480.0,0.00024286,2]
[388425969,1759164660852,-480.0,0.00024286,2]
[388425970,1759164660861,-1023.78,0.00024286,2]
[388425971,1759164660870,-853.74,0.00024286,2]
[388425972,1759164660879,-3620.99,0.00024286,2]
[388425973,1759164660888,-1562.59,0.00024286,2]
[388425974,1759164660897,-480.0,0.00024286,2]
[388425975,1759164660906,-1134.39,0.00024286,2]
[388425976,1759164660915,-654.93,0.00024286,2]
[388425977,1759164660925,-965.23,0.00024286,2]
[388425978,1759164660933,-2407.42,0.00024286,2]
[388425979,1759164660942,-480.0,0.00024286,2]
[388425980,1759164660951,-480.0,0.00024286,2]
[388425981,1759164660959,-151.0,0.00024286,7]
[388425982,1759164660968,-1940.44,0.00024286,2]
[388425983,1759164660977,-480.0,0.00024286,2]
[388425984,1759164660986,-657.71,0.00024286,2]
[388425985,1759164660995,-480.0,0.00024286,2]
[388425986,1759164661008,-480.0,0.00024286,2]
[388425987,1759164661017,-861.61,0.00024286,2]
[388425988,1759164661026,-480.0,0.00024286,2]
[388425989,1759164661036,-480.0,0.00024286,2]
[388425990,1759164661045,-151.0,0.00024286,7]
[388425991,1759164661055,-151.0,0.00024286,7]
[388425992,1759164661065,-1230.82,0.00024286,2]
[388425993,1759164661075,-151.0,0.00024286,7]
[388425994,1759164661085,-282.999716,0.00024286,7]
[388425995,1759164661094,-151.0,0.00024286,7]
[388425996,1759164661104,-480.0,0.00024286,2]
[388425997,1759164661113,-480.0,0.00024286,2]
[388425998,1759164661123,-946.62,0.00024286,2]
[388425999,1759164661132,-237.696537,0.00024286,7]
[388426000,1759164661145,-237.696537,0.00024286,7]
[388426001,1759164661155,-151.0,0.00024286,7]
[388426002,1759164661164,-480.0,0.00024286,2]
[388426003,1759164661173,-480.0,0.00024286,2]
[388426004,1759164661183,-237.696537,0.00024286,7]
[388426005,1759164661193,-237.696537,0.00024286,7]
[388426006,1759164661202,-480.0,0.00024286,2]
[388426007,1759164661212,-169.358262,0.00024286,7]
[388426008,1759164661222,-1509.42,0.00024286,2]
[388426009,1759164661231,-2515.07,0.00024286,2]
[388426010,1759164661241,-169.358262,0.00024286,7]
[388426011,1759164661251,-169.358262,0.00024286,7]
[388426012,1759164661260,-180.758138,0.00024286,7]
[388426013,1759164661270,-480.0,0.00024286,2]
[388426014,1759164661280,-169.358262,0.00024286,7]
[388426015,1759164661289,-1394.46,0.00024286,2]
[388426016,1759164661298,-151.0,0.00024286,7]
[388426017,1759164661307,-180.758138,0.00024286,7]
[388426018,1759164661316,-156.050985,0.00024286,7]
[388426019,1759164661326,-180.758138,0.00024286,7]
[388426020,1759164661335,-480.0,0.00024286,2]
[388426021,1759164661344,-180.758138,0.00024286,7]
[388426022,1759164661354,-867.65,0.00024286,2]
[388426023,1759164661364,-1332.39,0.00024286,2]
[388426024,1759164661373,-151.0,0.00024286,7]
[388426025,1759164661382,-6056.69,0.00024286,2]
[388426026,1759164661392,-480.0,0.00024286,2]
[388426027,1759164661401,-151.0,0.00024286,7]
[388426028,1759164661410,-2877.01,0.00024286,2]
[388426029,1759164661419,-2696.04,0.00024286,2]
[388426030,1759164661429,-480.0,0.00024286,2]
[388426031,1759164661439,-600.14,0.00024286,2]
[388426032,1759164661447,-696.62,0.00024286,2]
[388426033,1759164661456,-480.0,0.00024286,2]
[388426034,1759164661465,-480.0,0.00024286,2]
[388426035,1759164661475,-1464.58,0.00024286,2]
[388426036,1759164661484,-151.0,0.00024286,7]
[388426037,1759164661493,-590.86,0.00024286,2]
[388426038,1759164661502,-480.0,0.00024286,2]
[388426039,1759164661511,-925.14,0.00024286,2]
[388426040,1759164661520,-745.77,0.00024286,2]
[388426041,1759164661529,-6255.06,0.00024286,2]
[388426042,1759164661539,-151.0,0.00024286,7]
[388426043,1759164661548,-151.0,0.00024286,7]
[388426044,1759164661557,-10000.0,0.00024286,7]
[388426045,1759164661566,-10000.0,0.00024286,7]
[388426046,1759164661576,-480.0,0.00024286,2]
[388426047,1759164661586,-480.0,0.00024286,2]
[388426048,1759164661595,-10000.0,0.00024286,7]
[388426049,1759164661605,-10000.0,0.00024286,7]
[388426050,1759164661614,-10000.0,0.00024286,7]
[388426051,1759164661624,-2770.39,0.00024286,2]
[388426052,1759164661634,-868.46,0.00024286,2]
[388426053,1759164661643,-249.303497,0.00024286,7]
[388426054,1759164661652,-249.303497,0.00024286,7]
[388426055,1759164661661,-249.303497,0.00024286,7]
[388426056,1759164661669,-845.56,0.00024286,2]
[388426057,1759164661678,-249.303497,0.00024286,7]
[388426058,1759164661687,-945.18,0.00024286,2]
[388426059,1759164661697,-217.00372313,0.00024286,2]
[388426060,1759164661706,-480.0,0.00024286,2]
[388426061,1759164661716,-6262.52,0.00024286,2]
[388426062,1759164661726,-480.0,0.00024286,2]
[388426063,1759164661735,-896.93,0.00024286,2]
[388426064,1759164661744,-480.0,0.00024286,2]
[388426065,1759164661753,-480.0,0.00024286,2]
[388426066,1759164661762,-500.0,0.00024287,2]
[388426067,1759164661771,-2000.0,0.0002431,2]
[388426068,1759164661779,-2000.0,0.0002431,2]
[388426069,1759164661788,-2000.0,0.0002431,2]
[388426070,1759164661797,-2000.0,0.0002431,2]
[388426071,1759164661806,-2000.0,0.0002431,2]
[388426072,1759164661816,-2000.0,0.0002431,2]
[388426073,1759164661825,-2000.0,0.0002431,2]
[388426074,1759164661834,-2000.0,0.0002431,2]
[388426075,1759164661843,-2000.0,0.0002431,2]
[388426076,1759164661853,-2000.0,0.0002431,2]
[388426077,1759164661863,-607.479,0.0002431,2]
[388426078,1759164661872,-160.0,0.00024326,5]
[388426079,1759164661882,-151.0,0.00024334,7]
[388426080,1759164661891,-151.0,0.00024334,7]
[388426081,1759164661903,-151.0,0.00024334,7]
[388426082,1759164661912,-151.0,0.00024334,2]
[388426083,1759164661922,-158.20408301,0.00024334,2]
[388426084,1759164661931,-500.0,0.00024334,2]
[388426085,1759164661941,-151.0,0.00024334,2]
[388426086,1759164661950,-151.0,0.00024334,2]
[388426087,1759164661960,-500.0,0.00024334,2]
[388426088,1759164661970,-500.0,0.00024334,2]
[388426089,1759164661979,-151.0,0.00024334,2]
[388426090,1759164661989,-151.0,0.00024334,2]
[388426091,1759164661999,-500.0,0.00024334,2]
[388426092,1759164662008,-500.0,0.00024334,2]
[388426093,1759164662018,-500.0,0.00024334,2]
[388426094,1759164662027,-500.0,0.00024334,2]
[388426095,1759164662037,-151.0,0.00024334,2]
[388426096,1759164662047,-500.0,0.00024334,2]
[388426097,1759164662056,-1707.0,0.00024334,2]
[388426098,1759164662065,-500.0,0.00024334,2]
[388426099,1759164662075,-151.0,0.00024334,2]
[388426100,1759164662084,-500.0,0.00024334,2]
[388426101,1759164662093,-500.0,0.00024334,2]
[388426102,1759164662103,-151.0,0.00024334,2]
[388426103,1759164662112,-151.0,0.00024334,2]
[388426104,1759164662121,-151.0,0.00024334,2]
[388426105,1759164662130,-500.0,0.00024334,2]
[388426106,1759164662141,-151.0,0.00024334,2]
[388426107,1759164662151,-500.0,0.00024334,2]
[388426108,1759164662161,-151.0,0.00024334,2]
[388426109,1759164662170,-500.0,0.00024334,2]
[388426110,1759164662179,-500.0,0.00024334,2]
[388426111,1759164662190,-500.0,0.00024334,2]
[388426112,1759164662199,-500.0,0.00024334,2]
[388426113,1759164662210,-500.0,0.00024334,2]
[388426114,1759164662222,-151.0,0.00024334,2]
[388426115,1759164662231,-151.0,0.00024334,2]
[388426116,1759164662241,-500.0,0.00024334,2]
[388426117,1759164662250,-151.0,0.00024334,2]
[388426118,1759164662260,-151.0,0.00024334,2]
[388426119,1759164662270,-151.0,0.00024334,2]
[388426120,1759164662279,-151.0,0.00024334,2]
[388426121,1759164662288,-500.0,0.00024334,2]
[388426122,1759164662298,-500.0,0.00024334,2]
[388426123,1759164662308,-500.0,0.00024334,2]
[388426124,1759164662317,-480.0,0.00024361,2]
[388426125,1759164662326,-480.0,0.00024361,2]
[388426126,1759164662335,-480.0,0.00024361,2]
[388426127,1759164662345,-480.0,0.00024361,2]
[388426128,1759164662355,-583.2,0.00024361,2]
[388426129,1759164662364,-571.26,0.00024361,2]
[388426130,1759164662373,-480.0,0.00024361,2]
[388426131,1759164662382,-480.0,0.00024361,2]
[388426132,1759164662392,-716.52,0.00024361,2]
[388426133,1759164662403,-896.63,0.00024361,2]
[388426134,1759164662413,-480.0,0.00024361,2]
[388426135,1759164662425,-917.79,0.00024361,2]
[388426136,1759164662435,-655.19,0.00024361,2]
[388426137,1759164662445,-480.0,0.00024361,2]
[388426138,1759164662455,-2113.08,0.00024361,2]
[388426139,1759164662465,-1480.41,0.00024361,2]
[388426140,1759164662475,-480.0,0.00024361,2]
[388426141,1759164662485,-553.52802134,0.00024361,2]
[388426142,1759164662494,-480.0,0.00024361,2]
[388426143,1759164662503,-1196.6,0.00024361,2]
[388426144,1759164662512,-354.69057723,0.00024361,2]
[388426145,1759164662522,-872.25,0.00024361,2]
[388426146,1759164662531,-685.54,0.00024361,2]
[388426147,1759164662541,-500.0,0.00024361,2]
[388426148,1759164662550,-480.0,0.00024361,2]
[388426149,1759164662559,-567.12,0.00024361,2]
[388426150,1759164662568,-504.77,0.00024361,2]
[388426151,1759164662577,-480.0,0.00024361,2]
[388426152,1759164662586,-480.0,0.00024361,2]
[388426153,1759164662595,-1122.77,0.00024361,2]
[388426154,1759164662604,-998.5,0.00024361,2]
[388426155,1759164662613,-956.38,0.00024361,2]
[388426156,1759164662623,-656.25,0.00024361,2]
[388426157,1759164662632,-953.45,0.00024361,2]
[388426158,1759164662641,-699.93,0.00024361,2]
[388426159,1759164662651,-480.0,0.00024361,2]
[388426160,1759164662660,-669.29,0.00024361,2]
[388426161,1759164662669,-480.0,0.00024361,2]
[388426162,1759164662678,-480.0,0.00024361,2]
[388426163,1759164662687,-480.0,0.00024361,2]
[388426164,1759164662697,-521.85954466,0.00024361,2]
[388426165,1759164662706,-480.28,0.00024361,2]
[388426166,1759164662716,-480.0,0.00024361,2]
[388426167,1759164662725,-480.0,0.00024361,2]
[388426168,1759164662734,-480.0,0.00024361,2]
[388426169,1759164662743,-755.6,0.00024361,2]
[388426170,1759164662752,-588.95,0.00024361,2]
[388426171,1759164662761,-664.35,0.00024361,2]
[388426172,1759164662771,-480.0,0.00024361,2]
[388426173,1759164662780,-480.0,0.00024361,2]
[388426174,1759164662789,-508.12099485,0.00024361,2]
[388426175,1759164662798,-2344.23,0.00024361,2]
[388426176,1759164662807,-480.0,0.00024361,2]
[388426177,1759164662816,-200.0,0.00024361,2]
[388426178,1759164662825,-735.96,0.00024361,2]
[388426179,1759164662834,-500.12,0.00024361,2]
[388426180,1759164662843,-804.98,0.00024361,2]
[388426181,1759164662852,-480.0,0.00024361,2]
[388426182,1759164662861,-543.03,0.00024361,2]
[388426183,1759164662870,-480.0,0.00024361,2]
[388426184,1759164662879,-480.0,0.00024361,2]
[388426185,1759164662888,-762.01,0.00024361,2]
[388426186,1759164662897,-605.15,0.00024361,2]
[388426187,1759164662907,-583.03,0.00024361,2]
[388426188,1759164662916,-1440.98,0.00024361,2]
[388426189,1759164662925,-480.0,0.00024361,2]
[388426190,1759164663077,-480.0,0.00024361,2]
[388426191,1759164663089,-480.0,0.00024361,2]
[388426192,1759164663100,-480.0,0.00024361,2]